Cogmind - Beta 14 @@@ ROGUE MODE // 2024.11.14 @ 18:44:14 Player: Rachel.wav Result: Self-destructed Performance ------------- Evolutions (2) 1000 Regions Visited (4) 800 Robots Destroyed (24) 120 Value Destroyed (618) 618 Prototype IDs (0) 0 Alien Tech Used (0) 0 Bonus (66) 66 TOTAL SCORE: 2604 Bonus ------- Follower Combat Kills 66 Cogmind --------- Core Integrity 108/550 Matter 245/300 Energy 11/100 System Corruption 0% Temperature Cool (0) Movement Rolling (95) Ox1 Location -8/Materials Parts ------- > --- POWER (1) -------- (None) > --- PROPULSION (2) --- Wheel Combat Airjet > --- UTILITY (6) ------ Disposable Heat Sink Small Storage Unit Melee Analysis Suite Matter Filter Core Shielding > --- WEAPON (2) ------- Particle Gun Katana > --- INVENTORY (8) ---- Improved Ion Engine Trap Scanner Peak State ------------ > --- POWER ------------ Light Angular Momentum Engine > --- PROPULSION ------- Wheel Combat Airjet > --- UTILITY ---------- Improved Heat Sink Disposable Heat Sink Small Storage Unit Structural Scanner Improved Light Armor Plating Hacking Suite > --- WEAPON ----------- EM Shotgun EM Shotgun > --- INVENTORY -------- Improved Ion Engine Aluminum Leg Melee Analysis Suite Light Armor Plating EM Shotgun EM Shotgun Medium Laser Flail [Rating: 29] Favorites ----------- Power Light Deuterium Engine Engine Light Deuterium Engine Propulsion Wheel Treads Light Treads Wheel Wheel Hover Unit Combat Airjet Utility Small Storage Unit Device Structural Scanner Storage Small Storage Unit Processor Melee Analysis Suite Hackware Hacking Suite Protection Insulated Plating Weapon EM Shotgun Energy Gun EM Shotgun Ballistic Gun Assault Rifle Slashing Weapon Katana Build | -11 -10 -10 -9 -8 ------- Run | Yrd Mat Min Mat Mat Slots Evolved 4 | . . . 2 2 Power . | . . . . . Propulsion . | . . . . . Utility 4 | . . . 2 2 Weapon . | . . . . . Parts Attached 44 | 7 5 2 11 19 Power 5 | 1 . 1 2 1 Engine 5 | 1 . 1 2 1 Core . | . . . . . Reactor . | . . . . . Propulsion 6 | 2 . 1 . 3 Treads 1 | . . . . 1 Leg . | . . . . . Wheel 4 | 2 . . . 2 Hover 1 | . . 1 . . Flight . | . . . . . Utility 21 | 2 3 . 7 9 Device 6 | 1 1 . 2 2 Storage 3 | 1 2 . . . Processor 1 | . . . . 1 Hackware 1 | . . . . 1 Protection 10 | . . . 5 5 Artifact . | . . . . . Weapon 12 | 2 2 . 2 6 Energy Gun 9 | . 2 . 2 5 Energy Cannon . | . . . . . Ballistic Gun 2 | 2 . . . . Ballistic Cannon . | . . . . . Launcher . | . . . . . Special Weapon . | . . . . . Impact Weapon . | . . . . . Slashing Weapon 1 | . . . . 1 Piercing Weapon . | . . . . . Special Melee Weapon . | . . . . . Unidentified Prototypes . | . . . . . Parts Lost 13 | . . . . 13 Power 1 | . . . . 1 Propulsion 2 | . . . . 2 Utility 5 | . . . . 5 Weapon 5 | . . . . 5 Highest Loss Streak 6 | . . . . 6 To Critical Strikes . | . . . . . Average Slot Usage (%) 96 | . 100 100 98 92 Engine 10 | . 14 14 10 8 Wheel 12 | . 28 18 11 6 Hover 8 | . . 9 11 9 Device 20 | . 14 14 21 23 Storage 11 | . 14 14 11 9 Protection 9 | . . . 11 15 Energy Gun 18 | . 14 28 21 15 Ballistic Gun 1 | . 14 . . . Peak Build Rating 29 | 9 9 16 21 29 Average Rating 19 | 4 8 13 20 25 On Entrance 11 | . 9 9 16 21 Naked Turns . | . . . . . Heaviest Build 31 | 13 15 17 21 31 Greatest Support 20 | 20 20 20 10 16 Greatest Overweight (x) 2 | 2 . 1 2 2 Average Overweight (x) . | . . . 1 1 Largest Inventory Capacity 8 | 8 8 8 8 8 Average Capacity 7 | 7 7 8 8 8 Most Carried 8 | 3 5 8 8 8 Average Carried 6 | 1 3 6 6 7 Final Capacity 8 | 8 8 8 8 8 Final Carried 8 | 2 5 8 8 2 Class Distribution -------------------- 60% | Mutant 39% | Scavenger-Mutant Dominant Class ---------------- Mutant | -10/Materials Mutant | -10/Mines Mutant | -9/Materials Scavenger-Mutant | -8/Materials Resources | -11 -10 -10 -9 -8 ----------- Run | Yrd Mat Min Mat Mat Matter Collected 627 | 230 142 40 110 105 Remotely . | . . . . . Salvage Created 786 | 13 170 20 169 414 Parts 60 | 2 15 . 12 31 Haulers Intercepted . | . . . . . Recyclers Shooed . | . . . . . Parts Field Recycled . | . . . . . Retrieved Matter . | . . . . . Parts Self-Destructed . | . . . . . Prevented . | . . . . . Kills | -11 -10 -10 -9 -8 ------- Run | Yrd Mat Min Mat Mat Combat Hostiles Destroyed 17 | . 4 1 4 8 Guns 16 | . 4 1 4 7 Classes Destroyed 10 | 1 4 1 1 3 Builder 1 | . . . . 1 Tunneler 1 | 1 . . . . Operator 2 | . 1 . . 1 Watcher 4 | . 3 . . 1 Swarmer 7 | . 3 . 1 3 Grunt 3 | . 1 . 2 . Sentry 3 | . . . 1 2 Hunter 2 | . . . . 2 Heavy 1 | . . . . 1 Assembled 1 | . . 1 . . Best Kill Streak 4 | 1 3 1 3 4 Combat Bots Only 3 | . 3 1 3 3 Max Kills in Single Turn 2 | 1 2 1 1 1 Gunslinging 1 | . 1 . . . Exploded . | . . . . . Melee . | . . . . . Uniques/NPCs Destroyed . | . . . . . Combat | -11 -10 -10 -9 -8 -------- Run | Yrd Mat Min Mat Mat Hostile Shots Fired 206 | . 16 5 11 174 Missed 47 | . 3 . 5 39 Damage Taken 1793 | . 104 73 75 1541 Core 479 | . 16 14 7 442 Absorbed by Shields . | . . . . . Redirected to Shielding 3 | . . . . 3 Core Remaining (%) 95 | 100 . 88 98 . Volleys Fired 69 | 2 14 6 8 39 Largest 2 | 2 2 2 2 2 Hottest 95 | 40 90 90 90 95 Shots Fired 117 | 4 28 12 16 57 Gun 117 | 4 28 12 16 57 Cannon . | . . . . . Launcher . | . . . . . Special . | . . . . . Kinetic 24 | 4 20 . . . Thermal 8 | . . . . 8 Explosive . | . . . . . Electromagnetic 85 | . 8 12 16 49 Robot Hit Streak 14 | 3 5 2 10 14 Robot Miss Streak 6 | 1 3 4 6 4 Penetration Max . | . . . . . Secondary Targets 2 | . 1 . . 1 Max Gunslinging Chain 1 | . 1 . . 1 Shots Hit Robots 91 | 3 18 5 13 52 Core Hits 48 | 1 9 4 10 24 Critical Kills . | . . . . . Critical Parts Destroyed 1 | . 1 . . . Critical Strikes 2 | . 1 . . 1 Destroy 1 | . 1 . . . Sever 1 | . . . . 1 Melee Attacks 11 | . . . . 11 Impact . | . . . . . Slashing 11 | . . . . 11 Piercing . | . . . . . Sneak Attacks . | . . . . . Combat Hostiles . | . . . . . Follow-up Attacks . | . . . . . Damage Inflicted 1473 | 33 252 55 258 875 Guns 1149 | 33 252 55 197 612 Cannons . | . . . . . Explosions 61 | . . . 61 . Melee 263 | . . . . 263 Ramming . | . . . . . Kinetic 187 | 33 154 . . . Thermal 144 | . . . 61 83 Explosive . | . . . . . Electromagnetic 879 | . 98 55 197 529 Impact . | . . . . . Slashing 263 | . . . . 263 Piercing . | . . . . . Highest Corruption . | . . . . . Average Corruption . | . . . . . Corruption Purged . | . . . . . Corruption Blocked . | . . . . . Overload Shots . | . . . . . Overflow Damage 46 | . . . . 46 Projectiles . | . . . . . Explosions . | . . . . . Melee 46 | . . . . 46 Knockbacks . | . . . . . Impact . | . . . . . Kinetic . | . . . . . Secondary . | . . . . . Self-Inflicted Damage . | . . . . . Shots . | . . . . . Rammed . | . . . . . Targets Rammed . | . . . . . Kicked . | . . . . . Crushed . | . . . . . Highest Temperature 199 | . 76 120 198 199 Average Temperature 75 | . 34 48 92 85 Received Heat Transfer 261 | . 6 . 48 207 Siege Activations . | . . . . . Robots Corrupted . | . . . . . Combat Hostiles . | . . . . . Parts Fried 6 | . 3 . 1 2 Impact Corruptions . | . . . . . Robots Melted 1 | . . . . 1 Combat Hostiles 1 | . . . . 1 Parts Melted 2 | . . . . 2 Heat Transferred 272 | . . . 50 222 Parts Sabotaged . | . . . . . Parts Stolen . | . . . . . Parts Stripped . | . . . . . Power Chain Reactions 1 | . . . 1 . Alert | -11 -10 -10 -9 -8 ------- Run | Yrd Mat Min Mat Mat Peak Influence 209 | 5 193 75 181 209 Initial 76 | . 3 75 21 76 Average 103 | . 111 70 78 134 Maximum Alert Level 1 | . . . . 1 Low Security (%) 94 | 100 100 100 100 89 Level 1 5 | . . . . 10 Level 2 . | . . . . . Level 3 . | . . . . . Level 4 . | . . . . . Level 5 . | . . . . . High Security . | . . . . . Max Security . | . . . . . Squads Dispatched 2 | . 1 . . 1 Investigation 1 | . 1 . . . Extermination . | . . . . . Reinforcement 1 | . . . . 1 Assault . | . . . . . Garrison . | . . . . . Intercept . | . . . . . Searches Triggered . | . . . . . Construction Impeded . | . . . . . Haulers Reinforced . | . . . . . Active Scanning Responses . | . . . . . Cargo Convoy Interrupts . | . . . . . Stealth | -11 -10 -10 -9 -8 --------- Run | Yrd Mat Min Mat Mat Distress Signals 1 | . . . . 1 Communications Jammed . | . . . . . Distress Signals . | . . . . . Times Spotted 37 | . 12 3 6 16 Peak Tracking Total 9 | . 4 9 3 8 Tactical Retreats 6 | . 1 . 1 4 Traps | -11 -10 -10 -9 -8 ------- Run | Yrd Mat Min Mat Mat Traps Triggered 3 | . . . 3 . Indirectly . | . . . . . Trap Hack Attempts . | . . . . . Triggered . | . . . . . Disarmed . | . . . . . Reprogrammed . | . . . . . Reused . | . . . . . Traps Extracted . | . . . . . Installed . | . . . . . Triggered . | . . . . . Machines | -11 -10 -10 -9 -8 ---------- Run | Yrd Mat Min Mat Mat Machines Disabled 1 | . . . . 1 Max in Single Turn 1 | . . . . 1 Machines Repaired . | . . . . . Machines Dismantled . | . . . . . Machines Sabotaged . | . . . . . Overloaded Fab Kills . | . . . . . Hacking | -11 -10 -10 -9 -8 --------- Run | Yrd Mat Min Mat Mat Machines Accessed 4 | . 2 . 1 1 Terminals 4 | . 2 . 1 1 Fabricators . | . . . . . Repair Stations . | . . . . . Recycling Units . | . . . . . Scanalyzers . | . . . . . Garrison Access . | . . . . . Total Hacks 14 | . 7 . 4 3 Successful 6 | . 3 . 1 2 Failed 8 | . 4 . 3 1 Catastrophic 1 | . . . 1 . Database Lockouts . | . . . . . Manual 14 | . 7 . 4 3 Terminals 14 | . 7 . 4 3 Fabricators . | . . . . . Repair Stations . | . . . . . Recycling Units . | . . . . . Scanalyzers . | . . . . . Garrison Access . | . . . . . Terminal Hacks 3 | . 1 . . 2 Zone Layout 3 | . 1 . . 2 Fabricator Hacks . | . . . . . Repair Station Hacks . | . . . . . Recycling Unit Hacks . | . . . . . Scanalyzer . | . . . . . Garrison Access Hacks . | . . . . . Unauthorized Hacks 3 | . 2 . 1 . Terminals 3 | . 2 . 1 . Botnet 3 | . 2 . 1 . Fabricators . | . . . . . Repair Stations . | . . . . . Recycling Units . | . . . . . Scanalyzers . | . . . . . Garrison Access . | . . . . . Data Cores Recovered 2 | . 1 . . 1 Used 1 | . 1 . . . Hacking Detections 4 | . 2 . 1 1 Full Trace Events 2 | . 1 . 1 . Feedback Events . | . . . . . Feedback Blocked . | . . . . . Robot Schematics Acquired . | . . . . . Robots Built . | . . . . . Authchips . | . . . . . Time . | . . . . . Total Robot Build Rating . | . . . . . Part Schematics Acquired . | . . . . . Parts Built . | . . . . . Authchips . | . . . . . Time . | . . . . . Total Part Build Rating . | . . . . . Parts Repaired . | . . . . . Time . | . . . . . Parts Recycled . | . . . . . Recycled Matter . | . . . . . Retrieved Matter . | . . . . . Retrieved Components . | . . . . . Parts Scanalyzed . | . . . . . Part Schematics Acquired . | . . . . . Parts Damaged . | . . . . . Bothacking | -11 -10 -10 -9 -8 ------------ Run | Yrd Mat Min Mat Mat Used RIF Installer . | . . . . . Robots Hacked . | . . . . . Non-combat . | . . . . . Combat . | . . . . . Robot Hacks Applied . | . . . . . Relay Couplers Released . | . . . . . Fabnet Peak Effective % . | . . . . . Robots Rewired . | . . . . . Allies Hacked . | . . . . . Hacks Repelled . | . . . . . Allies | -11 -10 -10 -9 -8 -------- Run | Yrd Mat Min Mat Mat Total Allies 2 | . . 2 . . Largest Group 2 | . . 2 1 1 Highest-Rated Group 42 | . . 42 31 31 Highest-Rated Ally 31 | . . 31 31 31 Total Orders . | . . . . . Ally Attacks 3 | . . . . 3 Total Damage 64 | . . . . 64 Kills 2 | . . . . 2 Allies Corrupted . | . . . . . Allies Melted . | . . . . . Intel | -11 -10 -10 -9 -8 ------- Run | Yrd Mat Min Mat Mat Robot Analysis Total . | . . . . . Derelict Logs Recovered 1 | . . 1 . . Drone Launches . | . . . . . Drone Recoveries . | . . . . . Exploration | -11 -10 -10 -9 -8 ------------- Run | Yrd Mat Min Mat Mat Turns Passed 1400 | 71 181 259 234 655 Spaces Moved 790 | 54 138 138 131 329 Core 16 | 16 . . . . Treads . | . . . . . Legs . | . . . . . Wheels 719 | 38 138 138 131 274 Hover 55 | . . . . 55 Flight . | . . . . . Fastest Speed 50 | 50 80 80 80 80 Average Speed 108 | 91 80 85 108 132 Slowest Speed 240 | 150 80 95 110 240 Overloaded Moves . | . . . . . Propulsion Burnouts . | . . . . . Robots Hopped . | . . . . . Cave-ins Triggered . | . . . . . Exploration Rate (%) 24 | 4 32 31 13 40 Regions Visited 4 Branch Regions 1 Pre-discovered Areas . | . . . . . Known Exits Taken . | . . . . . Unknown Exits Taken 4 | 1 1 1 1 . Scrap Searched 1 | . . 1 . . Spaces Dug . | . . . . . Terrain Destroyed 4 | . . . 4 . Melee . | . . . . . Projectile . | . . . . . AOE 4 | . . . 4 . Terrain Rammed . | . . . . . Walls Destroyed . | . . . . . Machines Disabled . | . . . . . Actions | -11 -10 -10 -9 -8 --------- Run | Yrd Mat Min Mat Mat Total 1196 | 71 181 266 203 475 Wait 248 | . 14 119 50 65 Move 786 | 53 137 137 130 329 Hop . | . . . . . Pick Up 23 | 9 6 2 2 4 Fast Attach 18 | . 2 . 8 8 Attach 19 | 7 3 . 1 8 Detach . | . . . . . Swap 7 | . . 2 2 3 Drop 15 | . 5 . 2 8 Fire 69 | 2 14 6 8 39 Melee 11 | . . . . 11 Ram . | . . . . . Kick . | . . . . . Crush . | . . . . . Escape Stasis . | . . . . . Rewire . | . . . . . Trap . | . . . . . Miscellaneous . | . . . . . Route ------- -11/Scrapyard -10/Materials -10/Mines -9/Materials -8/Materials History --------- Turn | Location | Event 10 | -11/Scrapyard | Discovered new exit (range 15) 72 | -11/Scrapyard | Entered Materials 240 | -10/Materials | Discovered new exit (range 7) 253 | -10/Materials | Entered Mines 254 | -10/Mines | Assembled infested the area 309 | -10/Mines | Build established: Mutant 330 | -10/Mines | Met 8R-AWN 363 | -10/Mines | Learned Materials security intel 383 | -10/Mines | Discovered new exit (range 9) 512 | -10/Mines | Entered Materials 512 | -9/Materials | Accompanied by 1 ally 512 | -9/Materials | Evolved 2 slots: Utility x2 517 | -9/Materials | Led the pair of lost Derelicts to an unsafe place 731 | -9/Materials | Discovered new exit (range 15) 746 | -9/Materials | Entered another Materials area 746 | -8/Materials | Accompanied by 1 ally 746 | -8/Materials | Evolved 2 slots: Utility x2 900 | -8/Materials | Lost 3 parts (1n2w) 1054 | -8/Materials | Build established: Scavenger-Mutant 1299 | -8/Materials | Core integrity fell below 50% 1366 | -8/Materials | Lost 6 parts (1p1n2u2w) 1388 | -8/Materials | Core integrity fell below 20% 1401 | -8/Materials | Self-destructed Last Messages --------------- 01365_ Slug penetrates Wall. 01368_ Destroyed Lgt. Nuclear Core. 01370_ G-47 Trooper Particle Gun severed. 01372_ Wall collapses. 01372_ Penetrated by Slug. 01372_ Hrd. Light Armor Plating destroyed. 01375_ Penetrated by Slug. 01376_ Acquired Particle Gun. 01378_ Penetrated by Slug. 01378_ Structural Scanner destroyed. 01381_ Slug penetrates Wall. 01383_ U-05 Engineer builds a Wall. 01384_ Slug penetrates Wall. 01387_ Penetrated by Slug. 01387_ Lgt. Armor Plating destroyed. 01388_ H-55 Commando destroyed. 01394_ T-07 Excavator is excavating. 01395_ K-01 Serf cleans the Terminal. 01396_ K-01 Serf cleans the Fusion Modulator. 01398_ T-07 Excavator is excavating. Map ----- +----------------------------------------------------+ | ?????????????????????????????????????????????????? | | ?????????????????????????????????????????????????? | | ???????????????????????????????????????## ? #### | | ???????????????????????????????????????## #### | | ???????????????????????????????????????## T | | ???????????????????????????????????????## | | ???????????????????????????????????????## | | ???????????????????????????????????????## | | ????????????????????????????????????????? | | ?????????????????????????????????????????## """ | | ?????????????????????????????????????????## """ | | ?????????????????????????????????????????## """ | | ???????????????????"T"##?????????????????## """ | | ???????????????????? ?????????????????## """ | | ???????????????????? ?????????????????## """ | | ???????????????????? !?????????????????## %!%"" | | ??????????????? ? ?????????????????## ! | | ???????????????"" """ ????????????????## | | ????????????????" """ ????????????????## """ | | ????????????????" """ ????????????????## """ | | ????????????????? ????????????????#### """ | | ?????????????????? k ????????????????#### """ | | ????????????????? """ ######+#+########### """ | | ????????????????? """ ########### """ | | ??????????????""" """ # # """ | | ?????????? @ # # | | ?????????? # *#% | | ?????????? k k + %+%%%"" | | ??????????? #"T"###t###### k###########% """ | | ????????????????"???# ????## k### ## """ | | ????????????????????##?????## #????????# """ | | ???????????????????????????## #????????? """ | | ???????????????????????????## #????????# """ | | ???????????????????????????## #????????## """ | | ???????????????????????????## ????????## | | ???????????????????????????## ##???????## | | ????????????????????????????# #?????????? | | ????????????????????????????# #?????????? #### | | ????????????????????????????# #?????????? #### | | ????????????????????????????# #?????????? ???? | | ????????????????????????????# #?????????? ???? | | ????????????????????????????? ??????????? ???? | | ??????????????????????????????? ???????????????? | | ?????????????????????????????????????????????????? | | ?????????????????????????????????????????????????? | | ?????????????????????????????????????????????????? | | ?????????????????????????????????????????????????? | | ?????????????????????????????????????????????????? | | ?????????????????????????????????????????????????? | | ?????????????????????????????????????????????????? | +----------------------------------------------------+ Best States ------------- Heat Dissipation 45 Coolant Potential 50 Energy Generation 18 Energy Capacity 150 Matter Stores 300 Matter Capacity 400 Sight Range 16 Terrain Scan Range 16 Terrain Scan Density 10 Armor Coverage 300 Resistance: EM 15 Core Shielding 20 Evasion (%) 44 Melee Accuracy 5 Matter Filtering 30 Offensive Hacking 10 Item Schematics ----------------- None Robot Schematics ------------------ None Fabricated ------------ Nothing Alien Tech Used ----------------- None Achievements -------------- Dynamic Key I Survived The Infestation Challenges ------------ None Game ------ Seed SubdwellerSiegeWartreads Manual? 0 Play Time 00:19:00 Cumulative 4.2 hours Start 2024.10.15 @ 20:53:39 End 2024.11.14 @ 18:44:14 Sessions 3 Manual Loads 0 Difficulty Rogue Special Mode None Game No. 8 Rogue 8 Adventurer 0 Explorer 0 Win Type - Total 0 Types 0/0/0/0/0/0/0/0/0 Lore% 3 Gallery% 11 Achievement% 11 Wizard Run 0 Options --------- Layout 1 ASCII 0 Keyboard 0 Movement Mouse Keybinds 0 Fullscreen 1 Font 24/Smallcaps Map View 50x35 Zoom Use 0% Tactical HUD 1 Map Filters NONE Filters NONE Steam 1 RUN: ab4d7b47-7e1d-48df-a006-87630136cfb4